bitfinex/quotes_ETHUSD_20250517
["timestamp","ask_amount","ask_price","bid_price","bid_amount"]
[1747475359746,4.03095775,2480.8,2480.7,7.816]
[1747475360124,4.03088565,2480.9,2480.7,7.816]
[1747475360336,4.03078337,2481.0,2480.7,7.816]
[1747475360531,0.8134,2481.2,2480.7,8.68]
[1747475360532,4.03037772,2481.2,2480.7,8.68]
[1747475360848,4.03050123,2481.1,2480.8,0.824]
[1747475361520,4.03063579,2481.0,2480.8,0.824]
[1747475361721,4.03077848,2481.0,2480.8,0.824]
[1747475361935,4.03036543,2481.2,2480.9,0.55]
[1747475362245,4.03052612,2481.1,2480.9,1.95850896]
[1747475362445,4.03073812,2481.0,2480.8,2.354]
[1747475362612,4.03073812,2481.0,2480.9,7.816]
[1747475364240,7.813,2481.5,2480.4,18.939]
[1747475364445,4.03071228,2481.0,2480.7,7.816]
[1747475364759,4.03072952,2481.0,2480.8,7.816]
[1747475364966,4.03079527,2480.9,2480.8,7.816]
[1747475365315,4.03058533,2481.1,2480.8,7.816]
[1747475365517,4.03079527,2480.9,2480.8,6.316]
[1747475366273,4.03077127,2481.0,2480.8,6.316]
[1747475366453,4.03079527,2480.9,2480.8,6.316]
[1747475366771,4.03026345,2481.3,2480.9,0.8198]
[1747475367368,4.0306328,2481.0,2480.9,0.8198]
[1747475367874,4.0306328,2481.0,2480.9,8.6328]
[1747475368372,4.0306328,2481.0,2480.9,9.01712889]
[1747475368584,4.03023692,2481.3,2480.9,9.01712889]
[1747475368781,4.02973867,2481.6,2481.2,0.7781]
[1747475369084,4.02958856,2481.7,2481.2,0.7781]
[1747475369389,4.02967324,2481.6,2481.2,2.3081]
[1747475369602,4.02904552,2482.0,2481.4,0.55]
[1747475369814,4.02932065,2481.9,2481.5,8.63139266]
[1747475369955,4.02932065,2481.9,2481.5,8.5911]
[1747475370678,4.02935629,2481.8,2481.5,8.5911]
[1747475371058,4.02870981,2482.2,2481.5,8.5911]
[1747475371059,4.02951129,2481.7,2481.5,8.5911]
[1747475371261,4.02951129,2481.7,2481.5,10.04475812]
[1747475371590,4.02965828,2481.6,2481.5,10.04475812]
[1747475371770,4.02965828,2481.6,2481.5,10.42908701]
[1747475371953,4.02965828,2481.6,2481.5,2.61608701]
[1747475372158,4.02965828,2481.6,2481.5,8.97542889]
[1747475374095,4.02918642,2481.9,2481.5,8.97542889]
[1747475374399,4.02940591,2481.8,2481.6,0.38432889]
[1747475375485,4.84359591,2481.7,2481.6,0.38432889]
[1747475375856,4.02982067,2481.5,2481.4,1.53]
[1747475378012,4.84412067,2481.5,2481.4,1.53]
[1747475378210,4.02982067,2481.5,2481.4,1.53]
[1747475378517,4.02947077,2481.8,2481.5,0.8059]
[1747475378814,7.811,2481.9,2481.5,0.8059]
[1747475379005,4.02949591,2481.7,2481.5,0.8059]
[1747475379193,7.811,2482.2,2481.6,7.812]
[1747475379385,4.02936876,2481.8,2481.6,9.06281255]
[1747475380490,4.02949591,2481.7,2481.6,9.06281255]
[1747475381281,4.02949591,2481.7,2481.6,8.19699308]
[1747475382879,4.02941698,2481.8,2481.6,8.19699308]
[1747475383399,4.02949591,2481.7,2481.6,8.19699308]
[1747475383711,4.02949591,2481.7,2481.6,0.38499308]
[1747475383911,11.84049591,2481.7,2481.6,0.38499308]
[1747475384130,13.5088172,2481.7,2481.6,0.38499308]
[1747475384924,4.02982067,2481.5,2481.4,0.48041111]
[1747475386924,4.02998307,2481.4,2481.3,0.38534285]
[1747475387124,7.811,2481.7,2481.3,0.38534285]
[1747475387125,4.02989225,2481.5,2481.3,0.38534285]
[1747475387326,4.02949591,2481.7,2481.4,0.8106]
[1747475387825,4.02982067,2481.5,2481.4,0.8106]
[1747475388154,4.03014548,2481.3,2481.2,8.6226]
[1747475388444,4.0306328,2481.0,2480.9,8.29241111]
[1747475389306,4.8221328,2481.0,2480.9,8.29241111]
[1747475390118,4.8221328,2481.0,2480.9,8.67781716]
[1747475390326,4.8221328,2481.0,2480.9,8.19740605]
[1747475390992,0.7915,2481.4,2480.9,9.00800605]
[1747475391198,4.0306328,2481.0,2480.9,9.95684777]
[1747475391397,4.0306328,2481.0,2480.9,9.57144172]
[1747475392707,4.0306328,2481.0,2480.9,9.95676791]
[1747475394538,4.0306328,2481.0,2480.9,9.00792619]
[1747475394843,4.03047116,2481.1,2480.9,9.00792619]
[1747475395140,4.02992535,2481.5,2480.9,13.03871604]
[1747475395302,4.03007598,2481.4,2480.9,13.03871604]
[1747475395501,4.03007598,2481.4,2480.9,9.00792619]
[1747475395502,4.03020763,2481.3,2480.9,9.00792619]
[1747475395716,4.03020763,2481.3,2481.0,1.68920885]
[1747475396117,4.03034706,2481.2,2481.0,1.68920885]
[1747475397438,4.03034706,2481.2,2481.1,0.38532619]
[1747475398944,4.02933354,2481.8,2481.1,0.38532619]
[1747475399243,4.0298417,2481.5,2481.2,0.8131]
[1747475399406,4.0298417,2481.5,2481.2,1.51845185]
[1747475400151,4.02999588,2481.4,2481.2,1.51845185]
[1747475400309,4.03014548,2481.3,2481.2,0.8131]
[1747475401359,4.0294223,2481.8,2481.2,4.84332998]
[1747475401640,4.81560645,2482.2,2481.2,2.3431]
[1747475401641,4.02974688,2481.6,2481.2,2.3431]
[1747475401936,4.02974688,2481.6,2481.3,0.68538955]
[1747475402130,4.02974688,2481.6,2481.4,7.811]
[1747475402332,4.02974688,2481.6,2481.5,0.38499921]
[1747475403244,4.02939723,2481.8,2481.5,0.38499921]
[1747475403444,4.02952834,2481.7,2481.5,0.38499921]
[1747475403945,4.02965828,2481.6,2481.5,0.38499921]
[1747475404120,4.02965828,2481.6,2481.5,8.19599921]
[1747475404309,4.02965828,2481.6,2481.5,7.811]
[1747475405732,4.02965828,2481.6,2481.5,8.19576253]
[1747475405937,4.83557694,2481.6,2481.5,8.19576253]
[1747475406848,4.03023769,2481.3,2481.1,0.48041111]
[1747475407050,4.03023769,2481.3,2481.2,7.811]
[1747475408465,4.03023769,2481.3,2481.2,8.19615741]
[1747475409612,0.8108,2481.9,2481.3,0.55]
[1747475409810,4.0293402,2481.8,2481.5,0.8264]
[1747475411148,4.02965828,2481.6,2481.5,0.8264]
[1747475411649,4.02965828,2481.6,2481.5,1.21155741]
[1747475412820,4.02965828,2481.6,2481.5,0.38515741]
[1747475413019,4.02965828,2481.6,2481.5,8.19515741]
[1747475413227,4.02965828,2481.6,2481.5,0.38515741]
[1747475413431,5.64427667,2481.6,2481.5,0.38515741]
[1747475414744,4.02965828,2481.6,2481.5,0.38515741]
[1747475414946,4.72965828,2481.6,2481.5,0.38515741]
[1747475415343,4.02982067,2481.5,2481.4,7.81]
[1747475416157,4.83868307,2481.4,2481.3,0.38515741]
[1747475416930,4.83868307,2481.4,2481.1,0.38515741]
[1747475416931,4.03030791,2481.2,2481.1,0.38515741]
[1747475418738,5.69812325,2481.2,2481.1,0.38515741]
[1747475418931,6.51232325,2481.2,2481.1,0.38515741]
[1747475420152,4.03079527,2480.9,2480.8,0.38515741]
[1747475421867,4.84499527,2480.9,2480.8,0.38515741]
[1747475422738,4.03128275,2480.6,2480.5,0.86556852]
[1747475424150,4.03144527,2480.5,2480.4,7.811]
[1747475425870,4.03144527,2480.5,2480.4,8.19577286]
[1747475427390,11.84395872,2480.8,2480.4,8.19577286]
[1747475427391,7.811,2481.0,2480.4,8.70849729]
[1747475427705,4.03096625,2480.8,2480.4,8.70849729]
[1747475428237,4.03079527,2480.9,2480.4,8.70849729]
[1747475428397,4.0316078,2480.4,2480.3,0.7792]
[1747475428542,4.03185836,2480.3,2480.1,0.8277]
[1747475428742,4.03185836,2480.3,2480.2,7.811]
[1747475429168,4.03185836,2480.3,2480.2,8.19564635]
[1747475429760,4.03150788,2480.5,2480.2,8.19564635]
[1747475429761,4.03166929,2480.4,2480.2,8.19564635]
[1747475430582,0.819,2480.9,2480.2,8.19564635]
[1747475430799,4.03123612,2480.7,2480.2,13.38588858]
[1747475431095,4.03103955,2480.8,2480.3,0.8277]
[1747475431306,4.03125725,2480.7,2480.3,1.21234635]
[1747475431799,4.03125725,2480.7,2480.4,0.0403115]
[1747475432003,4.03133465,2480.6,2480.3,1.21234635]
[1747475432155,4.0316078,2480.4,2480.3,0.38464635]
[1747475434589,4.03177035,2480.3,2480.2,7.811]
[1747475435087,4.85787035,2480.3,2480.2,7.811]
[1747475435250,4.03242066,2479.9,2479.8,19.41441111]
[1747475435454,4.03242066,2479.9,2479.8,25.69641111]
[1747475435656,4.03242066,2479.9,2479.8,26.08105767]
[1747475436396,4.03234148,2480.0,2479.8,26.08105767]
[1747475436604,4.03201759,2480.2,2479.8,26.08105767]
[1747475436773,11.84363829,2480.4,2479.8,30.11357217]
[1747475437090,4.03207795,2480.2,2479.8,26.08105767]
[1747475437387,7.812,2480.4,2479.8,0.86505767]
[1747475437703,4.03274589,2479.7,2479.6,0.48041111]
[1747475439586,4.03267661,2479.8,2479.6,0.48041111]
[1747475440692,4.03267661,2479.8,2479.6,1.24661111]
[1747475441485,4.03250078,2479.9,2479.6,1.24661111]
[1747475441666,4.03259206,2479.8,2479.6,1.24661111]
[1747475441867,4.03274589,2479.7,2479.6,1.24661111]
[1747475442062,4.03274589,2479.7,2479.6,0.7662]
[1747475442881,4.03292428,2479.6,2479.4,1.3349]
[1747475443187,4.03282612,2479.7,2479.4,1.3349]
[1747475443694,3.92596009,2479.7,2479.5,0.38470852]
[1747475445091,3.92596009,2479.7,2479.5,8.19870852]
[1747475445795,4.03290853,2479.6,2479.5,7.814]
[1747475446166,4.03281022,2479.7,2479.5,7.814]
[1747475446373,4.03271448,2479.8,2479.5,7.814]
[1747475446671,4.03278165,2479.7,2479.5,7.814]
[1747475447173,4.03290853,2479.6,2479.5,7.814]
[1747475448179,7.813,2480.1,2479.5,7.814]
[1747475448180,4.03263358,2479.8,2479.5,7.814]
[1747475448489,4.03290853,2479.6,2479.5,7.814]
[1747475449398,4.03290853,2479.6,2479.5,8.19894833]
[1747475450494,4.03283266,2479.7,2479.5,8.19894833]
[1747475452114,4.03260862,2479.8,2479.5,9.25247316]
[1747475452296,4.03260862,2479.8,2479.6,0.38494833]
[1747475453008,4.03274589,2479.7,2479.6,0.38494833]
[1747475453210,4.03274589,2479.7,2479.6,8.19894833]
[1747475453506,4.78714589,2479.7,2479.6,8.19894833]
[1747475453891,4.78714589,2479.7,2479.6,7.814]
[1747475454271,4.03323384,2479.4,2479.3,0.48041111]
[1747475455822,4.03355921,2479.2,2479.1,25.223]
[1747475456894,1.63637545,2479.7,2479.1,25.223]
[1747475457217,1.63637545,2479.7,2479.2,0.3851404]
[1747475457218,4.03308617,2479.5,2479.2,0.3851404]
[1747475457780,4.0332604,2479.4,2479.2,0.3851404]
[1747475457985,4.03339652,2479.3,2479.2,0.3851404]
[1747475458340,13.43744976,2479.3,2479.2,0.3851404]
[1747475458805,21.43744976,2479.3,2479.2,0.3851404]
[1747475459371,22.13744976,2479.3,2479.2,0.3851404]
[1747475459632,4.03388463,2479.0,2478.9,0.48041111]
[1747475460606,0.7544,2479.5,2478.9,1.24171111]
[1747475460774,4.03356389,2479.2,2478.9,9.05671111]
[1747475461111,8.6014,2479.5,2479.0,1.30908405]
[1747475461112,0.7544,2479.5,2479.0,1.30908405]
[1747475461298,4.03341079,2479.3,2479.0,1.30908405]
[1747475461498,4.03331492,2479.4,2479.0,1.30908405]
[1747475461805,7.854,2479.5,2479.0,1.73455917]
[1747475462012,4.03349895,2479.3,2479.0,1.69422445]
[1747475462218,0.7544,2479.8,2479.1,1.02705245]
[1747475462397,8.6054,2479.8,2479.2,0.7613]
[1747475463208,4.03330986,2479.4,2479.3,0.3851404]
[1747475464378,4.03300702,2479.6,2479.3,0.3851404]
[1747475464713,4.03308033,2479.5,2479.3,0.3851404]
[1747475465614,4.03323384,2479.4,2479.3,0.3851404]
[1747475466836,4.03317526,2479.5,2479.3,0.3851404]
[1747475467041,4.03323384,2479.4,2479.3,0.3851404]
[1747475467940,4.79673384,2479.4,2479.3,0.3851404]
[1747475468103,5.67971749,2479.4,2479.3,0.3851404]
[1747475468804,5.67971749,2479.4,2478.9,2.17054815]
[1747475468805,4.03339652,2479.3,2479.2,0.3851404]
[1747475469802,11.88039652,2479.3,2479.2,0.3851404]
[1747475470140,4.03388463,2479.0,2478.9,0.86555151]
[1747475470436,7.847,2479.3,2479.0,0.7563]
[1747475470437,4.03355784,2479.3,2479.0,0.7563]
[1747475470737,7.847,2479.8,2479.0,0.79663677]
[1747475470940,4.03315973,2479.5,2479.1,0.55]
[1747475471108,4.03332319,2479.4,2479.2,0.6870126]
[1747475471310,4.03316303,2479.5,2479.1,0.55]
[1747475471746,4.03324165,2479.4,2479.1,0.55]
[1747475472117,4.03324165,2479.4,2479.2,0.3851404]
[1747475473017,4.03339652,2479.3,2479.2,0.3851404]
[1747475473223,4.03355921,2479.2,2479.1,0.48041111]
[1747475475049,4.03372191,2479.1,2479.0,0.3858698]
[1747475476843,4.03388463,2479.0,2478.9,0.3858698]
[1747475478440,6.42614528,2479.0,2478.9,0.3858698]
[1747475479736,4.03437285,2478.7,2478.6,0.48041111]
[1747475480668,4.033624,2479.2,2478.7,4.79883918]
[1747475480836,4.03333128,2479.4,2478.9,4.03396615]
[1747475481172,4.03346639,2479.3,2479.0,0.7645]
[1747475481338,4.03356425,2479.2,2479.0,0.7645]
[1747475481539,4.03356425,2479.2,2479.0,1.1503698]
[1747475482548,4.03356425,2479.2,2479.0,2.09494789]
[1747475482747,11.87433128,2479.4,2479.0,2.09494789]
[1747475482748,4.03345346,2479.3,2479.0,2.09494789]
[1747475482966,11.87333128,2479.4,2479.1,0.3858698]
[1747475483147,4.03355921,2479.2,2479.1,0.3858698]
[1747475483571,7.838,2479.6,2479.1,0.3858698]
[1747475483874,4.03315483,2479.5,2479.1,1.78026453]
[1747475484569,4.03309773,2479.5,2479.2,0.86628091]
[1747475486278,4.03309773,2479.5,2479.3,0.3858698]
[1747475486685,4.03323384,2479.4,2479.3,0.3858698]
[1747475488076,4.03339652,2479.3,2479.2,0.3858698]
[1747475488447,4.0328573,2479.7,2479.2,0.3858698]
[1747475488649,4.03260937,2479.8,2479.3,0.8097]
[1747475488960,4.0328607,2479.7,2479.3,1.33261222]
[1747475489161,4.032959,2479.6,2479.4,0.3858698]
[1747475491677,4.03265673,2479.8,2479.4,0.3858698]
[1747475491894,0.8011,2480.2,2479.5,0.3858698]
[1747475492053,4.03282708,2479.7,2479.5,0.3858698]
[1747475492885,4.03282708,2479.7,2479.6,0.3858698]
[1747475493703,4.03262162,2479.8,2479.6,0.3858698]
[1747475493852,4.03230266,2480.0,2479.6,0.3858698]
[1747475493853,4.03249494,2479.9,2479.6,0.3858698]
[1747475494582,4.03259097,2479.8,2479.6,0.3858698]
[1747475495190,4.03274589,2479.7,2479.6,0.3858698]
[1747475497294,4.03262762,2479.8,2479.6,0.3858698]
[1747475498461,4.03245619,2479.9,2479.6,0.3858698]
[1747475498462,4.03274589,2479.7,2479.6,0.3858698]
[1747475499181,4.03261631,2479.8,2479.6,0.3858698]
[1747475499994,0.8011,2480.2,2479.6,1.20725678]
[1747475500163,7.815,2480.0,2479.6,1.20725678]
[1747475500369,4.03267526,2479.8,2479.6,1.20725678]
[1747475500564,4.03274589,2479.7,2479.6,1.20725678]
[1747475500769,4.03274589,2479.7,2479.5,7.828]
[1747475500995,4.03290853,2479.6,2479.5,7.828]
[1747475502196,4.03290853,2479.6,2479.5,8.21351244]
[1747475502402,4.03290853,2479.6,2479.5,0.38551244]
[1747475502579,4.91522645,2479.6,2479.5,0.38551244]
[1747475503177,4.03339652,2479.3,2479.2,0.38551244]
[1747475504976,4.03355921,2479.2,2479.1,0.38551244]
[1747475506396,4.85715921,2479.2,2479.1,0.38551244]
[1747475506597,5.74621478,2479.2,2479.1,0.38551244]
[1747475507718,4.03437285,2478.7,2478.6,0.48041111]
[1747475509583,11.84937285,2478.7,2478.6,0.48041111]
[1747475509782,4.03437285,2478.7,2478.6,0.48041111]
[1747475510721,4.0346984,2478.5,2478.4,0.38559246]
[1747475512393,4.035024,2478.3,2478.2,8.30941111]
[1747475513996,4.035024,2478.3,2478.2,0.48041111]
[1747475514196,4.03518682,2478.2,2478.1,7.829]
[1747475516549,4.03518682,2478.2,2478.1,7.779]
[1747475516763,4.03551251,2478.0,2477.8,8.29641111]
[1747475517058,4.03567537,2477.9,2477.8,8.29641111]
[1747475517648,0.7852,2478.5,2477.8,7.816]
[1747475517852,4.03486965,2478.4,2477.9,1.3094]
[1747475518051,4.03489945,2478.4,2477.9,1.3094]
[1747475518349,11.85075765,2478.5,2478.0,4.03544306]
[1747475518528,4.03475765,2478.5,2478.0,4.03544306]
[1747475518853,4.03475765,2478.5,2478.1,0.7594]
[1747475520349,4.81927657,2478.9,2478.1,0.7594]
[1747475520350,0.7852,2478.9,2478.1,4.79466505]
[1747475520553,4.0345587,2478.6,2478.2,4.0754638]
[1747475520719,4.03453234,2478.7,2478.3,7.817]
[1747475520918,4.03461278,2478.6,2478.3,7.817]
[1747475521114,4.03444325,2478.7,2478.3,7.817]
[1747475521323,7.816,2479.0,2478.4,0.7594]
[1747475521651,7.816,2479.0,2478.6,4.0344374]
[1747475521850,11.84989177,2479.0,2478.6,4.0344374]
[1747475522148,4.03412515,2478.9,2478.4,4.79416773]
[1747475522351,4.03364668,2479.2,2478.7,4.81375196]
[1747475522550,4.03364815,2479.2,2478.8,7.817]
[1747475522747,4.03343201,2479.3,2478.8,11.85113935]
[1747475522932,4.03356565,2479.2,2479.0,0.7794]
[1747475523134,4.03347513,2479.3,2479.0,0.7794]
[1747475523340,4.03356144,2479.2,2479.0,0.7794]
[1747475523715,4.03346076,2479.3,2479.0,0.7794]
[1747475523916,4.81170725,2479.6,2479.1,0.0403356]
[1747475524264,4.03298746,2479.6,2479.3,0.7794]
[1747475524425,4.03308382,2479.5,2479.3,8.5954]
[1747475524752,7.816,2479.8,2479.3,8.5954]
[1747475524753,4.03323384,2479.4,2479.3,8.5954]
[1747475525458,4.03355921,2479.2,2479.1,0.38421958]
[1747475525647,4.03355921,2479.2,2479.1,8.20021958]
[1747475525822,4.03355921,2479.2,2479.1,0.38421958]
[1747475526029,4.03355921,2479.2,2479.1,8.20021958]
[1747475526233,4.03355921,2479.2,2479.1,7.816]
[1747475527466,4.03355921,2479.2,2479.0,0.7794]
[1747475527673,4.03355921,2479.2,2479.0,8.5954]
[1747475528675,4.03372191,2479.1,2479.0,7.816]
[1747475530169,4.03404735,2478.9,2478.8,9.346]
[1747475530689,0.7837,2479.3,2478.8,9.346]
[1747475530853,4.03349392,2479.3,2478.9,0.8324]
[1747475531270,4.03356545,2479.2,2478.9,0.8324]
[1747475531865,4.03388463,2479.0,2478.8,1.53]
[1747475532073,4.03404735,2478.9,2478.8,1.53]
[1747475532266,2.37179935,2479.2,2478.7,7.816]
[1747475532583,4.03419181,2478.9,2478.7,7.816]
[1747475532988,4.03419181,2478.9,2478.8,0.38471543]
[1747475533193,4.03361487,2479.2,2478.8,0.38471543]
[1747475533370,4.03337671,2479.4,2478.9,4.86637811]
[1747475533569,4.03311495,2479.5,2478.9,0.8324]
[1747475533570,4.03346798,2479.3,2478.9,0.8324]
[1747475533768,4.03346798,2479.3,2478.9,3.90815826]
[1747475534296,4.03357177,2479.2,2478.9,2.3624]
[1747475534466,4.03357177,2479.2,2479.0,7.816]
[1747475534819,4.03372191,2479.1,2479.0,7.816]
[1747475534951,4.03372191,2479.1,2479.0,8.20071543]
[1747475536196,4.03372191,2479.1,2479.0,7.816]
[1747475539398,4.03372191,2479.1,2478.6,4.51486917]
[1747475539399,4.0342101,2478.8,2478.6,0.48041111]
[1747475539572,12.64907285,2478.7,2478.6,0.48041111]
[1747475539765,12.64907285,2478.7,2478.6,0.86505604]
[1747475541611,4.03472447,2478.5,2478.1,7.815]
[1747475541812,4.03472447,2478.5,2478.1,8.77616401]
[1747475542330,11.8472892,2478.8,2478.3,4.03500836]
[1747475542514,11.8472892,2478.8,2478.3,4.07535334]
[1747475542692,7.813,2478.8,2478.4,4.81381757]
[1747475542898,4.03437285,2478.7,2478.4,0.779]
[1747475543085,4.03468216,2478.6,2478.2,2.69339084]
[1747475543416,4.035024,2478.3,2478.2,1.91439084]
[1747475543721,4.035024,2478.3,2478.2,8.20039084]
[1747475544090,4.035024,2478.3,2478.2,7.816]
[1747475545518,4.03535216,2478.1,2477.9,9.347]
[1747475546126,4.03546853,2478.1,2477.9,9.347]
[1747475546329,7.814,2478.3,2477.9,9.347]
[1747475546632,7.814,2478.3,2478.0,0.38454378]
[1747475546927,4.03519289,2478.2,2478.0,0.38454378]
[1747475547817,4.03534966,2478.1,2478.0,0.38454378]
[1747475548608,5.47146245,2478.1,2478.0,0.38454378]
[1747475549732,4.0348612,2478.4,2478.0,0.785]
[1747475550034,4.03483467,2478.5,2478.0,4.82050111]
[1747475550231,4.0348612,2478.4,2478.0,0.785]
[1747475550407,4.03517084,2478.3,2478.0,0.785]
[1747475550607,10.1806055,2478.6,2478.0,0.785]
[1747475550833,4.03514175,2478.3,2478.0,0.785]
[1747475551333,4.03495324,2478.4,2478.0,0.785]
[1747475551832,4.03487193,2478.4,2478.0,4.82045793]
[1747475552035,4.03461482,2478.6,2478.1,4.07569735]
[1747475552201,7.814,2478.9,2478.4,4.03483526]
[1747475552397,0.7784,2479.1,2478.6,4.81952422]
[1747475552398,4.03384347,2479.1,2478.6,4.81952422]
[1747475552630,4.03369023,2479.2,2478.6,0.785]
[1747475552928,7.814,2479.3,2478.6,0.785]
[1747475553112,4.03420846,2478.9,2478.6,0.785]
[1747475553318,4.0342101,2478.8,2478.5,8.1993363]
[1747475553732,4.03446459,2478.7,2478.5,8.1993363]
[1747475554247,4.03453562,2478.6,2478.5,8.1993363]
[1747475554743,4.03453562,2478.6,2478.5,0.3843363]
[1747475554945,4.03453562,2478.6,2478.5,8.1983363]
[1747475555146,17.29544418,2478.6,2478.5,0.3843363]
[1747475555349,18.49074932,2478.6,2478.5,0.3843363]
[1747475555660,29.34502828,2478.6,2478.5,0.3843363]
[1747475556755,4.03518682,2478.2,2477.5,0.7656]
[1747475556959,4.03590018,2477.8,2477.5,0.7656]
[1747475558053,4.03616402,2477.6,2477.5,0.7656]
[1747475558247,8.8311,2478.0,2477.2,9.06631111]
[1747475558429,4.03626512,2477.6,2477.2,10.03699704]
[1747475558630,4.03569433,2477.9,2477.2,14.07380129]
[1747475558977,4.03601924,2477.7,2477.2,14.07371641]
[1747475559880,4.03618218,2477.6,2477.2,10.03699704]
[1747475560043,4.03618218,2477.6,2477.2,9.55658593]
[1747475560761,11.92676068,2477.9,2477.4,4.03638182]
[1747475560960,11.92676068,2477.9,2477.5,0.04035889]
[1747475560961,4.03591596,2477.8,2477.5,0.04035889]
[1747475561176,4.03574784,2477.9,2477.4,4.076828]
[1747475561385,4.03584922,2477.8,2477.5,0.55]
[1747475561557,11.91775445,2477.9,2477.5,0.55]
[1747475561891,4.03575445,2477.9,2477.5,0.55]
[1747475562090,4.03555436,2478.0,2477.5,0.55]
[1747475562091,7.878,2478.0,2477.6,0.7709]
[1747475562391,4.03600113,2477.7,2477.6,0.7709]
[1747475562595,4.03592005,2477.8,2477.6,0.7709]
[1747475562892,4.03575766,2477.9,2477.6,0.7709]
[1747475563092,4.03551491,2478.0,2477.6,1.68459]
[1747475563296,4.03538256,2478.1,2477.6,5.72072919]
[1747475563666,11.91226406,2478.2,2477.7,4.07633583]
[1747475563863,4.0350506,2478.3,2477.8,4.03575365]
[1747475563864,4.03510745,2478.3,2477.8,4.03575365]
[1747475564062,7.875,2478.3,2477.9,0.04035348]
[1747475564365,4.03518682,2478.2,2477.7,0.55]
[1747475564566,4.03518682,2478.2,2477.7,5.99461277]
[1747475564765,4.0353661,2478.1,2477.7,1.95868245]
[1747475566978,4.0353661,2478.1,2477.7,5.99467132]
[1747475567202,4.0353661,2478.1,2477.7,1.95868245]
[1747475568075,12.70776561,2480.3,2478.1,1.3209]
[1747475568076,0.40342085,2478.9,2478.1,1.3209]
[1747475568382,8.6981,2479.0,2478.3,0.7709]
[1747475568619,4.03404735,2478.9,2478.4,4.03473649]
[1747475568768,0.8311,2479.2,2478.5,0.55]
[1747475568769,7.867,2479.0,2478.5,0.55]
[1747475569099,4.03427106,2478.8,2478.4,0.55]
[1747475569610,7.867,2479.0,2478.4,0.55]
[1747475569905,4.03449196,2478.7,2478.4,0.55]
[1747475570069,4.03449196,2478.7,2478.5,0.38242715]
[1747475570266,4.03429174,2478.8,2478.5,0.38242715]
[1747475571114,4.0340891,2478.9,2478.5,0.38242715]
[1747475571331,4.0340891,2478.9,2478.5,4.41711767]
[1747475571484,4.03397579,2479.0,2478.5,4.41711767]
[1747475571805,4.0337881,2479.1,2478.5,4.41711767]
[1747475571806,4.03388136,2479.1,2478.6,4.80527591]
[1747475571986,4.03392832,2479.0,2478.6,0.7709]
[1747475572189,7.851,2479.1,2478.7,4.03429717]
[1747475572585,7.851,2479.1,2478.6,0.7709]
[1747475572586,4.03405119,2478.9,2478.6,0.7709]
[1747475572799,4.03411179,2478.9,2478.6,0.7709]
[1747475575437,4.03428508,2478.8,2478.5,1.53]
[1747475575595,4.03415141,2478.9,2478.5,9.345]
[1747475575932,4.03427392,2478.8,2478.5,9.345]
[1747475576230,4.03409885,2478.9,2478.5,11.6496545]
[1747475577423,4.03422626,2478.8,2478.5,11.6496545]
[1747475578147,4.03445992,2478.7,2478.5,9.345]
[1747475578349,4.03430118,2478.8,2478.5,9.345]
[1747475578655,0.8235,2478.9,2478.5,9.345]
[1747475578857,4.03414604,2478.9,2478.5,9.345]
[1747475579565,4.03403015,2479.0,2478.5,13.37965512]
[1747475579745,4.03406251,2478.9,2478.5,13.37965512]
[1747475579968,4.03395915,2479.0,2478.5,13.37965512]
[1747475580137,11.86193577,2479.0,2478.5,9.345]
[1747475580464,0.7,2478.8,2478.5,9.345]
[1747475580829,4.03412392,2478.9,2478.5,9.345]
[1747475581025,11.86193577,2479.0,2478.5,9.345]
[1747475581356,4.03414219,2478.9,2478.5,13.37963755]
[1747475581556,11.85694987,2479.0,2478.5,13.37963755]
[1747475581742,4.03406049,2478.9,2478.5,13.37963755]
[1747475581937,11.85692009,2479.0,2478.5,9.345]
[1747475582254,4.0341129,2478.9,2478.5,13.37965962]
[1747475582457,11.85697936,2479.0,2478.5,13.37965962]
[1747475582761,4.03408153,2478.9,2478.5,13.37965962]
[1747475583061,11.8517854,2479.1,2478.5,13.37965962]
[1747475583363,4.0340787,2478.9,2478.5,11.84965962]
[1747475583769,4.0339544,2479.0,2478.5,11.84965962]
[1747475584072,4.03323734,2479.4,2478.7,4.86292448]
[1747475584370,4.03316009,2479.5,2479.1,0.8286]
[1747475584664,0.7582,2479.7,2479.1,0.8286]
[1747475584665,4.03349113,2479.3,2479.1,0.8286]
[1747475585035,4.03355921,2479.2,2479.1,0.8286]
[1747475585230,4.03388463,2479.0,2478.9,0.8286]
[1747475585440,4.03388463,2479.0,2478.8,1.53]
[1747475585441,4.03404735,2478.9,2478.8,1.53]
[1747475585861,4.84084133,2478.9,2478.8,1.53]
[1747475586048,4.03453562,2478.6,2478.5,0.48041111]
[1747475586994,4.03440397,2478.7,2478.5,0.48041111]
[1747475587196,11.85612707,2478.9,2478.5,1.30901111]
[1747475587401,4.03412707,2478.9,2478.5,1.30901111]
[1747475587540,4.03379589,2479.1,2478.6,5.11884043]
[1747475587745,4.03389554,2479.0,2478.6,2.61437926]
[1747475590062,4.03389554,2479.0,2478.6,6.64889841]
[1747475590263,4.03389554,2479.0,2478.6,2.61437926]
[1747475590575,4.0340753,2478.9,2478.6,2.61437926]
[1747475590745,4.03395096,2479.0,2478.6,2.61437926]
[1747475592107,4.03395096,2479.0,2478.7,0.38380976]
[1747475592405,4.03378344,2479.1,2478.7,0.38380976]
[1747475592560,4.03402728,2479.0,2478.7,0.38380976]
[1747475593004,4.03402389,2479.0,2478.7,0.38380976]
[1747475593174,4.0342101,2478.8,2478.7,0.38380976]
[1747475593701,4.03412428,2478.9,2478.7,0.38380976]
[1747475594487,4.0342101,2478.8,2478.7,0.38380976]
[1747475594898,4.03413679,2478.9,2478.7,0.38380976]
[1747475595198,7.815,2479.2,2478.8,0.7869]
[1747475595365,11.84858905,2479.2,2478.8,0.7869]
[1747475595566,11.84830281,2479.4,2478.8,0.7869]
[1747475595763,4.03403356,2479.0,2478.8,0.7869]
[1747475595961,4.03404735,2478.9,2478.7,0.38380976]
[1747475596491,4.0342101,2478.8,2478.7,0.38380976]
[1747475596990,4.84102696,2478.8,2478.7,0.38380976]
[1747475597211,4.7845101,2478.8,2478.7,0.38380976]
[1747475597975,12.7845101,2478.8,2478.7,0.38380976]
[1747475600581,4.0348612,2478.4,2478.3,0.64054815]
[1747475602215,8.7503,2478.8,2478.3,0.64054815]
[1747475602418,7.815,2478.7,2478.4,0.7869]
[1747475602598,4.0348612,2478.4,2478.3,0.64054815]
[1747475603097,4.03478267,2478.5,2478.3,0.64054815]
[1747475603486,4.03478267,2478.5,2478.3,0.38507887]